[Event "Betsys MČR v online bleskovém šachu 2021"]
[Site "Chess.com"]
[Date "2021.04.17"]
[Round "4"]
[White "TheRigos"]
[Black "Pantata007"]
[Result "1-0"]
[WhiteElo "2548"]
[BlackElo "2269"]
[TimeControl "180+1"]
[EndTime "9:37:23 PDT"]
[Termination "Uživatel TheRigos zvítězil na čas"]

1. e4 {[%clk 0:02:53.8]} 1... e5 {[%clk 0:02:59.3]} 2. Nf3 {[%clk 0:02:53.8]}
2... Nc6 {[%clk 0:02:59.6]} 3. Bb5 {[%clk 0:02:54.5]} 3... a6 {[%clk 0:02:59.2]}
4. Ba4 {[%clk 0:02:55.1]} 4... Nf6 {[%clk 0:02:59.2]} 5. O-O {[%clk 0:02:53.1]}
5... Be7 {[%clk 0:02:59.1]} 6. Re1 {[%clk 0:02:53.3]} 6... b5 {[%clk 0:02:58.6]}
7. Bb3 {[%clk 0:02:53.4]} 7... O-O {[%clk 0:02:59]} 8. c3 {[%clk 0:02:53.3]}
8... d5 {[%clk 0:02:59.2]} 9. d4 {[%clk 0:02:50.8]} 9... exd4 {[%clk 0:02:54]}
10. e5 {[%clk 0:02:50.7]} 10... Ne4 {[%clk 0:02:53.6]} 11. cxd4 {[%clk
0:02:50.9]} 11... Bf5 {[%clk 0:02:44.5]} 12. Nc3 {[%clk 0:02:44.8]} 12... Nxc3
{[%clk 0:02:39]} 13. bxc3 {[%clk 0:02:45]} 13... Na5 {[%clk 0:02:38.4]} 14. Bc2
{[%clk 0:02:39.8]} 14... Qd7 {[%clk 0:02:38.5]} 15. Bg5 {[%clk 0:02:24.3]} 15...
Rfe8 {[%clk 0:02:26.3]} 16. a4 {[%clk 0:01:43.4]} 16... Bxc2 {[%clk 0:01:52.9]}
17. Qxc2 {[%clk 0:01:36.6]} 17... Nc4 {[%clk 0:01:53]} 18. h3 {[%clk 0:01:19.3]}
18... h6 {[%clk 0:01:45.1]} 19. Bf4 {[%clk 0:01:13.3]} 19... Bf8 {[%clk
0:01:20.5]} 20. Reb1 {[%clk 0:01:07.3]} 20... Na3 {[%clk 0:01:12.2]} 21. Rxa3
{[%clk 0:01:07.4]} 21... Bxa3 {[%clk 0:01:11.8]} 22. a5 {[%clk 0:01:08.3]} 22...
Bf8 {[%clk 0:00:51.8]} 23. Be3 {[%clk 0:01:00.2]} 23... Rec8 {[%clk 0:00:42.9]}
24. Rd1 {[%clk 0:00:35]} 24... Qe6 {[%clk 0:00:39.4]} 25. Qa2 {[%clk 0:00:33.5]}
25... Qc6 {[%clk 0:00:31.5]} 26. Ne1 {[%clk 0:00:24.3]} 26... Rd8 {[%clk
0:00:23]} 27. Bd2 {[%clk 0:00:20.7]} 27... Rab8 {[%clk 0:00:18.5]} 28. Nd3
{[%clk 0:00:20.8]} 28... Qc4 {[%clk 0:00:18]} 29. Qc2 {[%clk 0:00:20.9]} 29...
b4 {[%clk 0:00:14.5]} 30. Nb2 {[%clk 0:00:21]} 30... b3 {[%clk 0:00:11.8]} 31.
Qb1 {[%clk 0:00:19.1]} 31... Qb5 {[%clk 0:00:11.1]} 32. Qf5 {[%clk 0:00:15.9]}
32... Re8 {[%clk 0:00:08.2]} 33. Ra1 {[%clk 0:00:15.8]} 33... Rbc8 {[%clk
0:00:07.4]} 34. Qg4 {[%clk 0:00:16]} 34... Kh8 {[%clk 0:00:06.6]} 35. Qh4 {[%clk
0:00:15.6]} 35... Kh7 {[%clk 0:00:06.1]} 36. Qg4 {[%clk 0:00:11.7]} 36... Qb6
{[%clk 0:00:04.8]} 37. axb6 {[%clk 0:00:11.2]} 1-0

[Event "Betsys MČR v online bleskovém šachu 2021"]
[Site "Chess.com"]
[Date "2021.04.17"]
[Round "4"]
[White "PetrSoucek"]
[Black "Bolavey_Kotnik"]
[Result "0-1"]
[WhiteElo "2019"]
[BlackElo "2363"]
[TimeControl "180+1"]
[EndTime "9:37:23 PDT"]
[Termination "Uživatel Bolavey_Kotnik zvítězil na čas"]

1. e4 {[%clk 0:03:00.9]} 1... c5 {[%clk 0:02:59.6]} 2. a3 {[%clk 0:02:58.8]}
2... e6 {[%clk 0:02:55.6]} 3. b4 {[%clk 0:02:59]} 3... b6 {[%clk 0:02:56.1]} 4.
bxc5 {[%clk 0:02:52.9]} 4... bxc5 {[%clk 0:02:57]} 5. Bc4 {[%clk 0:02:47.7]}
5... d6 {[%clk 0:02:55.1]} 6. Ne2 {[%clk 0:02:42.3]} 6... Nf6 {[%clk 0:02:54.3]}
7. Nbc3 {[%clk 0:02:37]} 7... Be7 {[%clk 0:02:53.2]} 8. O-O {[%clk 0:02:36.6]}
8... O-O {[%clk 0:02:53.2]} 9. d3 {[%clk 0:02:34.4]} 9... Nc6 {[%clk 0:02:46.7]}
10. f4 {[%clk 0:02:33.3]} 10... Rb8 {[%clk 0:02:20.2]} 11. Ng3 {[%clk
0:02:20.7]} 11... Nd4 {[%clk 0:01:48.7]} 12. Nce2 {[%clk 0:02:15.5]} 12... d5
{[%clk 0:01:42.8]} 13. exd5 {[%clk 0:02:02.4]} 13... exd5 {[%clk 0:01:36]} 14.
Nxd4 {[%clk 0:01:59.4]} 14... cxd4 {[%clk 0:01:36]} 15. Bb3 {[%clk 0:01:54.6]}
15... Re8 {[%clk 0:01:18.7]} 16. f5 {[%clk 0:01:53.5]} 16... Bd6 {[%clk
0:01:09.8]} 17. Nh5 {[%clk 0:01:48.2]} 17... h6 {[%clk 0:00:46.6]} 18. Qf3
{[%clk 0:01:17.2]} 18... Bb7 {[%clk 0:00:27]} 19. Nf4 {[%clk 0:00:45.7]} 19...
Qa5 {[%clk 0:00:19.7]} 20. Nh5 {[%clk 0:00:21.8]} 20... Qd8 {[%clk 0:00:17.8]}
21. Nf4 {[%clk 0:00:19.8]} 21... Be5 {[%clk 0:00:14.3]} 22. g4 {[%clk
0:00:14.3]} 22... Qd6 {[%clk 0:00:11.8]} 23. h4 {[%clk 0:00:13.9]} 23... Nh7
{[%clk 0:00:08.8]} 24. Nh5 {[%clk 0:00:08.6]} 24... Nf6 {[%clk 0:00:08.1]} 25.
Nxf6+ {[%clk 0:00:08]} 25... Bxf6 {[%clk 0:00:08.1]} 26. g5 {[%clk 0:00:08.4]}
26... Be5 {[%clk 0:00:07.6]} 27. f6 {[%clk 0:00:07]} 27... g6 {[%clk 0:00:05.9]}
28. gxh6 {[%clk 0:00:06.7]} 28... Kh7 {[%clk 0:00:04.7]} 29. h5 {[%clk 0:00:07]}
29... Rg8 {[%clk 0:00:04.9]} 30. hxg6+ {[%clk 0:00:04.6]} 30... Rxg6+ {[%clk
0:00:05.8]} 31. Kh1 {[%clk 0:00:04.4]} 31... Rbg8 {[%clk 0:00:06.4]} 32. Bf4
{[%clk 0:00:03]} 32... Bc8 {[%clk 0:00:06.3]} 33. Bxe5 {[%clk 0:00:02.5]} 33...
Qxe5 {[%clk 0:00:07.2]} 34. Bxd5 {[%clk 0:00:02.9]} 34... Qg5 {[%clk 0:00:06.2]}
35. Be4 {[%clk 0:00:03.8]} 35... Qxh6+ {[%clk 0:00:05.1]} 0-1

[Event "Betsys MČR v online bleskovém šachu 2021"]
[Site "Chess.com"]
[Date "2021.04.17"]
[Round "4"]
[White "OlifantCZ"]
[Black "David_Mic"]
[Result "1-0"]
[WhiteElo "2284"]
[BlackElo "1989"]
[TimeControl "180+1"]
[EndTime "9:37:23 PDT"]
[Termination "Uživatel OlifantCZ zvítězil na čas"]

1. c4 {[%clk 0:03:00.9]} 1... Nf6 {[%clk 0:02:56.1]} 2. g3 {[%clk 0:03:00.6]}
2... g6 {[%clk 0:02:56.3]} 3. Bg2 {[%clk 0:03:01]} 3... Bg7 {[%clk 0:02:56.6]}
4. Nc3 {[%clk 0:03:01.6]} 4... O-O {[%clk 0:02:56.3]} 5. e4 {[%clk 0:03:00.1]}
5... d6 {[%clk 0:02:56.3]} 6. Nge2 {[%clk 0:02:59]} 6... e5 {[%clk 0:02:54.9]}
7. O-O {[%clk 0:02:58.5]} 7... Nbd7 {[%clk 0:02:55]} 8. d3 {[%clk 0:02:46.2]}
8... c6 {[%clk 0:02:52]} 9. h3 {[%clk 0:02:41.8]} 9... Qc7 {[%clk 0:02:48.8]}
10. f4 {[%clk 0:02:40.7]} 10... Re8 {[%clk 0:02:25.7]} 11. f5 {[%clk 0:02:40]}
11... Nf8 {[%clk 0:02:17.1]} 12. g4 {[%clk 0:02:39.1]} 12... gxf5 {[%clk
0:02:07.6]} 13. gxf5 {[%clk 0:02:37.7]} 13... d5 {[%clk 0:02:07.1]} 14. Ng3
{[%clk 0:02:36.7]} 14... dxe4 {[%clk 0:02:04.1]} 15. Ncxe4 {[%clk 0:02:29.2]}
15... b6 {[%clk 0:01:52.5]} 16. Nxf6+ {[%clk 0:02:23.5]} 16... Bxf6 {[%clk
0:01:51.9]} 17. Nh5 {[%clk 0:02:14.8]} 17... Qd6 {[%clk 0:01:49.2]} 18. Qg4+
{[%clk 0:02:08]} 18... Kh8 {[%clk 0:01:48.7]} 19. Bh6 {[%clk 0:02:03.5]} 19...
Ng6 {[%clk 0:01:37.8]} 20. Be4 {[%clk 0:01:48.4]} 20... Rg8 {[%clk 0:01:24.4]}
21. Kh1 {[%clk 0:01:41.7]} 21... Nf4 {[%clk 0:01:11.1]} 22. Qf3 {[%clk
0:01:37.4]} 22... Bd7 {[%clk 0:00:55.7]} 23. Rg1 {[%clk 0:01:32.1]} 23... Rxg1+
{[%clk 0:00:29.5]} 24. Rxg1 {[%clk 0:01:31]} 24... Nxh5 {[%clk 0:00:16.4]} 25.
Qxh5 {[%clk 0:01:29.9]} 25... Rg8 {[%clk 0:00:16.2]} 26. Rxg8+ {[%clk
0:01:21.7]} 26... Kxg8 {[%clk 0:00:17.1]} 27. Qg4+ {[%clk 0:01:21.1]} 27... Kh8
{[%clk 0:00:17.1]} 28. Be3 {[%clk 0:01:18.3]} 28... Qf8 {[%clk 0:00:14.2]} 29.
Kg2 {[%clk 0:01:14.1]} 29... Qg7 {[%clk 0:00:14.2]} 30. Kf3 {[%clk 0:01:14]}
30... Qxg4+ {[%clk 0:00:13.8]} 31. hxg4 {[%clk 0:01:13.9]} 31... Be7 {[%clk
0:00:12.4]} 32. g5 {[%clk 0:01:11.4]} 32... f6 {[%clk 0:00:12.6]} 33. Kg4 {[%clk
0:01:06.4]} 33... Kg7 {[%clk 0:00:09.6]} 34. Kh5 {[%clk 0:00:55.4]} 34... fxg5
{[%clk 0:00:09.4]} 35. Bxg5 {[%clk 0:00:54.3]} 35... Bf6 {[%clk 0:00:09.6]} 36.
b4 {[%clk 0:00:50.3]} 36... Bxg5 {[%clk 0:00:05.9]} 37. Kxg5 {[%clk 0:00:49.9]}
37... h6+ {[%clk 0:00:06.5]} 38. Kg4 {[%clk 0:00:47.4]} 38... Kf6 {[%clk
0:00:06.7]} 39. a3 {[%clk 0:00:43.2]} 39... h5+ {[%clk 0:00:06.6]} 40. Kxh5
{[%clk 0:00:41]} 40... Bxf5 {[%clk 0:00:06.7]} 41. Kh4 {[%clk 0:00:40.4]} 41...
c5 {[%clk 0:00:05.2]} 42. bxc5 {[%clk 0:00:31.7]} 42... bxc5 {[%clk 0:00:03]}
43. Kh5 {[%clk 0:00:31.5]} 43... a5 {[%clk 0:00:01.7]} 44. Kh6 {[%clk
0:00:29.5]} 44... Bxe4 {[%clk 0:00:01.1]} 45. dxe4 {[%clk 0:00:29.3]} 1-0

[Event "Betsys MČR v online bleskovém šachu 2021"]
[Site "Chess.com"]
[Date "2021.04.17"]
[Round "4"]
[White "nw_tynka"]
[Black "jachymcarostrelec4"]
[Result "0-1"]
[WhiteElo "2194"]
[BlackElo "1943"]
[TimeControl "180+1"]
[EndTime "9:37:24 PDT"]
[Termination "Uživatel jachymcarostrelec4 zvítězil po vzdání soupeře"]

1. e4 {[%clk 0:03:00.9]} 1... c6 {[%clk 0:03:00.1]} 2. d4 {[%clk 0:03:00.3]}
2... d5 {[%clk 0:03:01]} 3. Nc3 {[%clk 0:03:00.6]} 3... dxe4 {[%clk 0:02:56.7]}
4. Nxe4 {[%clk 0:03:01.5]} 4... Nf6 {[%clk 0:02:56.9]} 5. Nxf6+ {[%clk
0:03:00.5]} 5... exf6 {[%clk 0:02:57.8]} 6. c3 {[%clk 0:02:59]} 6... Bd6 {[%clk
0:02:53.7]} 7. Bd3 {[%clk 0:02:57.7]} 7... O-O {[%clk 0:02:53.4]} 8. Qc2 {[%clk
0:02:56.9]} 8... h5 {[%clk 0:02:53.4]} 9. Ne2 {[%clk 0:02:52.8]} 9... Re8 {[%clk
0:02:49.5]} 10. Be3 {[%clk 0:02:50.7]} 10... Nd7 {[%clk 0:02:46.9]} 11. O-O-O
{[%clk 0:02:39.2]} 11... Nf8 {[%clk 0:02:46.5]} 12. Ng3 {[%clk 0:02:27.4]} 12...
h4 {[%clk 0:02:38.6]} 13. Nf5 {[%clk 0:02:16.3]} 13... Bxf5 {[%clk 0:02:34.2]}
14. Bxf5 {[%clk 0:02:17.2]} 14... g6 {[%clk 0:02:30.4]} 15. Bd3 {[%clk
0:02:11.9]} 15... f5 {[%clk 0:02:18.5]} 16. g3 {[%clk 0:02:01.7]} 16... Qf6
{[%clk 0:02:16.2]} 17. Qd2 {[%clk 0:01:46]} 17... Ne6 {[%clk 0:02:01.1]} 18. Bc4
{[%clk 0:01:21.4]} 18... f4 {[%clk 0:01:47]} 19. gxf4 {[%clk 0:01:19.8]} 19...
Nxf4 {[%clk 0:01:36.5]} 20. Rhg1 {[%clk 0:00:44.6]} 20... Re4 {[%clk 0:01:10.4]}
21. Bd3 {[%clk 0:00:37.2]} 21... Nxd3+ {[%clk 0:01:04.3]} 22. Qxd3 {[%clk
0:00:38.1]} 22... Qf5 {[%clk 0:01:01.5]} 23. h3 {[%clk 0:00:34.5]} 23... Rae8
{[%clk 0:00:54.2]} 24. Rg5 {[%clk 0:00:21.1]} 24... Qf3 {[%clk 0:00:49.7]} 25.
Rdg1 {[%clk 0:00:18.1]} 25... Kg7 {[%clk 0:00:46.1]} 26. Qd1 {[%clk 0:00:17.1]}
26... Qxh3 {[%clk 0:00:37.3]} 27. Rh1 {[%clk 0:00:16.6]} 27... Qe6 {[%clk
0:00:31]} 28. Rg4 {[%clk 0:00:16.2]} 28... Qxg4 {[%clk 0:00:29.2]} 29. Qxg4
{[%clk 0:00:15.4]} 29... Rxg4 {[%clk 0:00:30.1]} 30. Kd2 {[%clk 0:00:14.3]}
30... g5 {[%clk 0:00:27.6]} 31. Ke2 {[%clk 0:00:13.8]} 31... f6 {[%clk
0:00:27.3]} 32. Kf3 {[%clk 0:00:13.4]} 32... Rf4+ {[%clk 0:00:25]} 33. Bxf4
{[%clk 0:00:12.3]} 33... Bxf4 {[%clk 0:00:25.9]} 34. Kg4 {[%clk 0:00:10.7]}
34... Kg6 {[%clk 0:00:25.5]} 35. Kf3 {[%clk 0:00:10.2]} 35... f5 {[%clk
0:00:25.9]} 36. c4 {[%clk 0:00:09.7]} 36... Re4 {[%clk 0:00:25.6]} 37. Rd1
{[%clk 0:00:08.8]} 37... g4+ {[%clk 0:00:24.2]} 38. Kg2 {[%clk 0:00:08.3]} 38...
h3+ {[%clk 0:00:24.8]} 39. Kh1 {[%clk 0:00:08]} 39... Bd6 {[%clk 0:00:24.4]} 40.
d5 {[%clk 0:00:07.7]} 40... cxd5 {[%clk 0:00:23.9]} 41. cxd5 {[%clk 0:00:07.1]}
41... Kg5 {[%clk 0:00:22.8]} 42. Kg1 {[%clk 0:00:06.1]} 42... Kh4 {[%clk
0:00:21.1]} 0-1

[Event "Betsys MČR v online bleskovém šachu 2021"]
[Site "Chess.com"]
[Date "2021.04.17"]
[Round "4"]
[White "PavelNo"]
[Black "Bavorak15"]
[Result "1/2-1/2"]
[WhiteElo "1975"]
[BlackElo "1592"]
[TimeControl "180+1"]
[EndTime "9:37:24 PDT"]
[Termination "Remíza opakováním pozice"]

1. e4 {[%clk 0:03:00.9]} 1... d5 {[%clk 0:02:59.8]} 2. d3 {[%clk 0:02:59.7]}
2... dxe4 {[%clk 0:02:59.1]} 3. dxe4 {[%clk 0:02:59.6]} 3... Qxd1+ {[%clk
0:02:59.6]} 4. Kxd1 {[%clk 0:02:59.6]} 4... e5 {[%clk 0:02:56.1]} 5. Be3 {[%clk
0:02:58.6]} 5... Be6 {[%clk 0:02:53.1]} 6. Nd2 {[%clk 0:02:54.1]} 6... Nc6
{[%clk 0:02:53.1]} 7. c3 {[%clk 0:02:52.7]} 7... O-O-O {[%clk 0:02:53.1]} 8. Kc2
{[%clk 0:02:52.7]} 8... f5 {[%clk 0:02:50.4]} 9. f3 {[%clk 0:02:51.9]} 9... Nf6
{[%clk 0:02:47.6]} 10. Bd3 {[%clk 0:02:51.2]} 10... g6 {[%clk 0:02:31.5]} 11.
Ne2 {[%clk 0:02:50.4]} 11... Bg7 {[%clk 0:02:29.2]} 12. a3 {[%clk 0:02:40.5]}
12... fxe4 {[%clk 0:01:57.5]} 13. Nxe4 {[%clk 0:02:39.5]} 13... Bb3+ {[%clk
0:01:54.2]} 14. Kxb3 {[%clk 0:02:34.8]} 14... Rxd3 {[%clk 0:01:53.5]} 15. Bg5
{[%clk 0:02:12.2]} 15... Nxe4 {[%clk 0:01:45.1]} 16. fxe4 {[%clk 0:02:12.2]}
16... h6 {[%clk 0:01:37]} 17. Bc1 {[%clk 0:02:04]} 17... Rf8 {[%clk 0:01:25.6]}
18. Kc2 {[%clk 0:02:01.6]} 18... Rfd8 {[%clk 0:01:22]} 19. Ng3 {[%clk
0:01:47.5]} 19... b6 {[%clk 0:01:01.2]} 20. Re1 {[%clk 0:01:46.5]} 20... h5
{[%clk 0:00:50.6]} 21. Be3 {[%clk 0:01:37.9]} 21... Na5 {[%clk 0:00:46]} 22. b3
{[%clk 0:01:27.6]} 22... Kb7 {[%clk 0:00:41.2]} 23. Bg5 {[%clk 0:01:17.9]} 23...
R8d7 {[%clk 0:00:38.4]} 24. Re2 {[%clk 0:01:08.8]} 24... Bf8 {[%clk 0:00:24.2]}
25. a4 {[%clk 0:01:05.7]} 25... Bg7 {[%clk 0:00:11.7]} 26. Rf1 {[%clk
0:01:02.9]} 26... Nc6 {[%clk 0:00:08.6]} 27. Rff2 {[%clk 0:00:51.5]} 27... Na5
{[%clk 0:00:07.9]} 28. Nf1 {[%clk 0:00:47.7]} 28... c5 {[%clk 0:00:06.4]} 29.
Rd2 {[%clk 0:00:47.3]} 29... Rxd2+ {[%clk 0:00:05]} 30. Rxd2 {[%clk 0:00:47.2]}
30... Rxd2+ {[%clk 0:00:04.5]} 31. Nxd2 {[%clk 0:00:47.1]} 31... Kc6 {[%clk
0:00:04.6]} 32. b4 {[%clk 0:00:40.4]} 32... cxb4 {[%clk 0:00:04.3]} 33. cxb4
{[%clk 0:00:40.4]} 33... Nb7 {[%clk 0:00:04.7]} 34. Kd3 {[%clk 0:00:38.7]} 34...
Kd6 {[%clk 0:00:03.7]} 35. Nc4+ {[%clk 0:00:36.7]} 35... Ke6 {[%clk 0:00:04.2]}
36. Ne3 {[%clk 0:00:33.9]} 36... Nd6 {[%clk 0:00:03.9]} 37. Nd5 {[%clk
0:00:31.1]} 37... Nb7 {[%clk 0:00:01.6]} 38. Nc7+ {[%clk 0:00:30.8]} 38... Kd7
{[%clk 0:00:01.9]} 39. Nd5 {[%clk 0:00:30.6]} 39... Kc6 {[%clk 0:00:01.7]} 40.
Be7 {[%clk 0:00:25.6]} 40... Kd7 {[%clk 0:00:01.8]} 41. Bg5 {[%clk 0:00:23.1]}
41... Kc6 {[%clk 0:00:01.5]} 42. Ne7+ {[%clk 0:00:21.6]} 42... Kd7 {[%clk
0:00:01.4]} 43. Nd5 {[%clk 0:00:21]} 1/2-1/2

[Event "Betsys MČR v online bleskovém šachu 2021"]
[Site "Chess.com"]
[Date "2021.04.17"]
[Round "4"]
[White "kalcs"]
[Black "ZdenekRomanek"]
[Result "1-0"]
[WhiteElo "2075"]
[BlackElo "1603"]
[TimeControl "180+1"]
[EndTime "9:37:25 PDT"]
[Termination "Uživatel kalcs zvítězil na čas"]

1. e4 {[%clk 0:02:59.8]} 1... e6 {[%clk 0:02:59.2]} 2. d4 {[%clk 0:02:59.2]}
2... d5 {[%clk 0:02:58.5]} 3. Nc3 {[%clk 0:02:59.3]} 3... Nf6 {[%clk 0:02:57.6]}
4. e5 {[%clk 0:02:59.2]} 4... Nfd7 {[%clk 0:02:56.9]} 5. f4 {[%clk 0:02:59.2]}
5... c5 {[%clk 0:02:56.4]} 6. Nf3 {[%clk 0:02:59.3]} 6... cxd4 {[%clk
0:02:55.4]} 7. Nxd4 {[%clk 0:02:58.4]} 7... Nc6 {[%clk 0:02:54.6]} 8. Be3 {[%clk
0:02:57.9]} 8... a6 {[%clk 0:02:53.5]} 9. Qd2 {[%clk 0:02:55.6]} 9... Bc5 {[%clk
0:02:47.6]} 10. Nxc6 {[%clk 0:02:49.7]} 10... bxc6 {[%clk 0:02:46.5]} 11. Bxc5
{[%clk 0:02:47.5]} 11... Nxc5 {[%clk 0:02:45.6]} 12. Be2 {[%clk 0:02:36.7]}
12... O-O {[%clk 0:02:43.2]} 13. O-O-O {[%clk 0:02:23.7]} 13... Rb8 {[%clk
0:02:36.6]} 14. Nb1 {[%clk 0:02:01.2]} 14... Ne4 {[%clk 0:02:28.8]} 15. Qe3
{[%clk 0:01:52.3]} 15... Qa5 {[%clk 0:02:19.9]} 16. a3 {[%clk 0:01:39.1]} 16...
c5 {[%clk 0:02:14.5]} 17. Bd3 {[%clk 0:01:34.3]} 17... Qb6 {[%clk 0:02:02.1]}
18. b3 {[%clk 0:01:14.4]} 18... Bb7 {[%clk 0:01:47]} 19. Bxe4 {[%clk 0:01:09.1]}
19... dxe4 {[%clk 0:01:45.5]} 20. Rd6 {[%clk 0:01:08.7]} 20... Qa5 {[%clk
0:01:41.6]} 21. Qc3 {[%clk 0:00:58.9]} 21... Qc7 {[%clk 0:01:30.9]} 22. Rhd1
{[%clk 0:00:58.4]} 22... Bd5 {[%clk 0:01:28.2]} 23. Rxa6 {[%clk 0:00:48.1]}
23... Rfc8 {[%clk 0:01:12.7]} 24. Rd6 {[%clk 0:00:45.6]} 24... f6 {[%clk
0:01:07.7]} 25. f5 {[%clk 0:00:33.2]} 25... fxe5 {[%clk 0:00:52.4]} 26. Qxe5
{[%clk 0:00:31.8]} 26... c4 {[%clk 0:00:42]} 27. b4 {[%clk 0:00:22.5]} 27... Qe7
{[%clk 0:00:21.5]} 28. fxe6 {[%clk 0:00:20]} 28... Re8 {[%clk 0:00:17.8]} 29.
R6xd5 {[%clk 0:00:15.8]} 29... Qxe6 {[%clk 0:00:11.7]} 30. Qxe6+ {[%clk
0:00:15.6]} 30... Rxe6 {[%clk 0:00:10.9]} 31. Nc3 {[%clk 0:00:15.4]} 31... e3
{[%clk 0:00:08.8]} 32. Re1 {[%clk 0:00:09.5]} 32... Rbe8 {[%clk 0:00:06.8]} 33.
b5 {[%clk 0:00:07.8]} 33... e2 {[%clk 0:00:05.3]} 34. a4 {[%clk 0:00:06.2]}
34... h5 {[%clk 0:00:02]} 35. a5 {[%clk 0:00:04.5]} 1-0

[Event "Betsys MČR v online bleskovém šachu 2021"]
[Site "Chess.com"]
[Date "2021.04.17"]
[Round "4"]
[White "machonza"]
[Black "mravecuk"]
[Result "0-1"]
[WhiteElo "1977"]
[BlackElo "2272"]
[TimeControl "180+1"]
[EndTime "9:37:26 PDT"]
[Termination "Uživatel mravecuk zvítězil po vzdání soupeře"]

1. e4 {[%clk 0:03:00.9]} 1... e6 {[%clk 0:02:40.2]} 2. d3 {[%clk 0:02:59.7]}
2... d5 {[%clk 0:02:36.2]} 3. Nd2 {[%clk 0:03:00]} 3... Nf6 {[%clk 0:02:32.2]}
4. Ngf3 {[%clk 0:02:58.7]} 4... c5 {[%clk 0:02:31.6]} 5. g3 {[%clk 0:02:57.8]}
5... Nc6 {[%clk 0:02:31.9]} 6. Bg2 {[%clk 0:02:57.4]} 6... Be7 {[%clk
0:02:32.2]} 7. O-O {[%clk 0:02:56.7]} 7... Qc7 {[%clk 0:02:32.4]} 8. Re1 {[%clk
0:02:55.8]} 8... O-O {[%clk 0:02:32]} 9. e5 {[%clk 0:02:54.8]} 9... Nd7 {[%clk
0:02:32.2]} 10. Qe2 {[%clk 0:02:54]} 10... b5 {[%clk 0:02:32.4]} 11. Nf1 {[%clk
0:02:53]} 11... Nd4 {[%clk 0:02:28.8]} 12. Nxd4 {[%clk 0:02:51.3]} 12... cxd4
{[%clk 0:02:29.1]} 13. Bf4 {[%clk 0:02:49.8]} 13... Bb7 {[%clk 0:02:28.2]} 14.
h4 {[%clk 0:02:49]} 14... Rfc8 {[%clk 0:02:28.1]} 15. Rac1 {[%clk 0:02:46]}
15... a5 {[%clk 0:02:26.9]} 16. h5 {[%clk 0:02:42.8]} 16... Bb4 {[%clk
0:02:26.7]} 17. Red1 {[%clk 0:02:33.3]} 17... Ra6 {[%clk 0:02:23.8]} 18. Nh2
{[%clk 0:02:25.5]} 18... Rc6 {[%clk 0:02:23.4]} 19. a3 {[%clk 0:02:18.7]} 19...
Bf8 {[%clk 0:02:17.9]} 20. Rd2 {[%clk 0:02:11.9]} 20... b4 {[%clk 0:02:12.3]}
21. axb4 {[%clk 0:02:07.2]} 21... Bxb4 {[%clk 0:02:10.7]} 22. c3 {[%clk
0:02:00.3]} 22... dxc3 {[%clk 0:02:10.2]} 23. bxc3 {[%clk 0:01:59.5]} 23... Rxc3
{[%clk 0:02:10]} 24. Rxc3 {[%clk 0:01:57.5]} 24... Qxc3 {[%clk 0:02:08.1]} 25.
Rd1 {[%clk 0:01:57.3]} 25... Qc2 {[%clk 0:01:58.8]} 26. Qg4 {[%clk 0:01:52.7]}
26... Bc5 {[%clk 0:01:39.5]} 27. Rf1 {[%clk 0:01:43.7]} 27... Qxd3 {[%clk
0:01:32.2]} 28. Bh6 {[%clk 0:01:28.3]} 28... Bf8 {[%clk 0:01:32.1]} 29. f4
{[%clk 0:01:17.6]} 29... Qf5 {[%clk 0:01:23.3]} 30. Qxf5 {[%clk 0:01:13.7]}
30... exf5 {[%clk 0:01:23.4]} 31. Bg5 {[%clk 0:01:13.4]} 31... h6 {[%clk
0:01:11.9]} 32. Bh4 {[%clk 0:01:11.3]} 32... a4 {[%clk 0:00:48.7]} 33. Rb1
{[%clk 0:01:07.6]} 33... Ba8 {[%clk 0:00:45.2]} 34. g4 {[%clk 0:01:00.9]} 34...
fxg4 {[%clk 0:00:40.7]} 35. Nxg4 {[%clk 0:01:00.1]} 35... a3 {[%clk 0:00:40.7]}
36. f5 {[%clk 0:00:47.2]} 36... d4 {[%clk 0:00:32.6]} 37. Bxa8 {[%clk 0:00:42]}
37... Rxa8 {[%clk 0:00:32.4]} 38. Ra1 {[%clk 0:00:36.7]} 38... d3 {[%clk
0:00:29.9]} 39. e6 {[%clk 0:00:30.5]} 39... Bc5+ {[%clk 0:00:29.8]} 40. Bf2
{[%clk 0:00:27.4]} 40... fxe6 {[%clk 0:00:27.1]} 41. fxe6 {[%clk 0:00:25.9]}
41... Bxf2+ {[%clk 0:00:27]} 42. Kxf2 {[%clk 0:00:22.4]} 42... Nc5 {[%clk
0:00:23.6]} 43. Ke3 {[%clk 0:00:20.4]} 43... Nxe6 {[%clk 0:00:20]} 44. Kxd3
{[%clk 0:00:20]} 44... Ra5 {[%clk 0:00:18.6]} 45. Kc3 {[%clk 0:00:17.6]} 45...
Rxh5 {[%clk 0:00:17.5]} 46. Rxa3 {[%clk 0:00:14.9]} 46... Rh3+ {[%clk
0:00:17.5]} 47. Kc4 {[%clk 0:00:14.9]} 47... Rxa3 {[%clk 0:00:17.7]} 0-1